bitfinex-derivatives/quotes_BNBF0:USTF0_20251010
["timestamp","ask_amount","ask_price","bid_price","bid_amount"]
[1760138651896,2.15226269,1112.8,1105.7,1.25710671]
[1760138652200,2.15226269,1112.8,1105.8,0.62666679]
[1760138652496,2.15226269,1113.3,1105.9,1.25710671]
[1760138652696,2.15226269,1113.6,1106.0,1.25710671]
[1760138652897,2.15226269,1113.6,1106.1,1.25710671]
[1760138653098,2.15226269,1113.6,1106.2,0.62666679]
[1760138653295,2.15226269,1113.2,1106.3,0.62666679]
[1760138653500,2.15226269,1113.2,1105.8,0.63043992]
[1760138653897,2.15226269,1112.9,1105.5,0.63043992]
[1760138654101,2.15226269,1112.9,1105.6,0.62901501]
[1760138654399,2.15226269,1112.6,1105.7,0.62901501]
[1760138654602,2.15226269,1112.6,1105.8,0.62901501]
[1760138654802,2.15226269,1112.6,1105.9,0.62901501]
[1760138655102,5.16543046,1113.1,1106.0,0.62901501]
[1760138655298,5.16543046,1113.1,1106.1,0.62901501]
[1760138655601,2.15226269,1112.8,1106.2,0.62798662]
[1760138655801,2.15226269,1112.8,1105.5,0.63043992]
[1760138656001,2.15226269,1112.8,1105.2,0.63043992]
[1760138656598,2.15226269,1112.8,1104.9,0.84058656]
[1760138656899,2.15226269,1112.3,1105.0,0.62785965]
[1760138657102,2.15226269,1112.3,1105.1,0.62785965]
[1760138657300,2.15226269,1111.7,1104.7,0.63140642]
[1760138657499,2.15226269,1111.7,1104.8,0.62893421]
[1760138657702,2.15226269,1111.7,1104.9,0.62893421]
[1760138658002,2.15226269,1111.7,1103.3,2.10146641]
[1760138658003,5.16543046,1112.2,1105.0,0.62893421]
[1760138658200,2.15226269,1112.2,1105.1,0.62893421]
[1760138658404,2.15226269,1112.4,1105.2,0.62893421]
[1760138658602,2.15226269,1112.8,1105.3,1.26034063]
[1760138658802,2.15226269,1113.0,1105.4,1.26034063]
[1760138659002,2.15226269,1113.0,1105.5,1.26034063]
[1760138659201,2.15226269,1113.4,1105.6,1.26034063]
[1760138659402,2.15226269,1113.4,1105.7,0.62893421]
[1760138659600,2.15226269,1113.4,1105.8,0.62893421]
[1760138659801,2.15226269,1113.3,1105.8,0.63140642]
[1760138660004,2.15226269,1113.3,1105.9,0.62893421]
[1760138660304,2.15226269,1113.5,1106.0,0.62893421]
[1760138660505,2.15226269,1113.5,1106.1,0.62893421]
[1760138660703,2.15226269,1113.5,1106.2,0.62893421]
[1760138661002,2.15226269,1113.5,1106.3,0.62893421]
[1760138661306,2.15226269,1113.4,1106.4,0.62893421]
[1760138661505,2.15226269,1113.4,1106.3,0.63140642]
[1760138661506,2.15226269,1113.5,1106.6,0.63140642]
[1760138661706,2.15226269,1113.5,1106.6,1.26034063]
[1760138661904,2.15226269,1113.5,1106.7,0.62893421]
[1760138662503,2.15226269,1113.8,1106.8,1.25393125]
[1760138662803,2.15226269,1113.8,1106.9,0.62160869]
[1760138663107,2.15226269,1114.2,1106.9,1.25393125]
[1760138663306,2.15226269,1114.2,1107.0,0.62160869]
[1760138663504,2.15226269,1114.2,1107.1,0.62160869]
[1760138663707,2.15226269,1113.6,1106.4,0.63232256]
[1760138663907,2.15226269,1113.6,1105.4,0.63232256]
[1760138664212,2.15226269,1112.9,1105.7,0.63232256]
[1760138664406,2.15226269,1113.0,1106.0,0.63232256]
[1760138664606,2.15226269,1113.0,1106.1,1.25659629]
[1760138664806,2.15226269,1113.0,1106.2,0.62427373]
[1760138665111,2.15226269,1113.2,1106.3,0.62427373]
[1760138665305,2.15226269,1113.2,1106.4,0.62427373]
[1760138665507,2.15226269,1113.2,1105.7,0.63639271]
[1760138665706,2.15226269,1113.2,1105.9,0.63639271]
[1760138665906,2.15226269,1112.7,1106.0,0.61478439]
[1760138666109,2.15226269,1112.7,1105.5,0.63639271]
[1760138666309,2.15226269,1112.4,1105.5,0.63639271]
[1760138666510,2.15226269,1112.4,1105.6,0.60644796]
[1760138666709,2.15226269,1112.4,1105.0,1.529]
[1760138666908,2.15226269,1111.0,1105.0,1.529]
[1760138667108,2.15226269,1112.0,1105.1,0.6426396]
[1760138667307,2.15226269,1112.0,1105.2,0.6426396]
[1760138667508,2.15226269,1112.0,1105.3,0.6426396]
[1760138667813,2.15226269,1112.6,1105.6,0.63639271]
[1760138668010,2.15226269,1112.6,1105.4,0.84187523]
[1760138668212,2.15226269,1111.9,1105.6,0.64091938]
[1760138668513,2.15226269,1111.8,1105.8,0.64091938]
[1760138668708,2.15226269,1111.8,1105.9,1.27212272]
[1760138668911,2.15226269,1111.6,1106.0,0.63120334]
[1760138669213,2.15226269,1111.8,1105.2,0.64091938]
[1760138669413,2.15226269,1111.8,1105.3,1.23221266]
[1760138669612,2.15226269,1111.8,1105.4,1.23221266]
[1760138669908,2.15226269,1111.2,1105.5,0.59129328]
[1760138670213,2.15226269,1111.2,1105.0,2.16991938]
[1760138670412,2.15226269,1111.2,1105.5,0.64091938]
[1760138670713,2.15226269,1111.2,1105.6,0.58993888]
[1760138671010,2.15226269,1112.4,1106.1,0.64091938]
[1760138671211,2.15226269,1113.0,1107.0,0.64091938]
[1760138671409,4.30452539,1114.3,1107.0,0.64091938]
[1760138671410,2.15226269,1113.6,1107.3,0.64091938]
[1760138671612,2.15226269,1113.7,1107.4,1.23085826]
[1760138671807,2.15226269,1113.7,1107.5,0.58993888]
[1760138672011,2.15226269,1113.7,1107.0,0.84187523]
[1760138672012,2.15226269,1113.7,1107.6,0.58993888]
[1760138672207,2.15226269,1113.0,1107.7,1.27503135]
[1760138672413,2.15226269,1113.0,1107.8,0.63411197]
[1760138672612,3.01316777,1113.9,1107.9,0.63411197]
[1760138672814,3.01316777,1113.9,1108.0,0.63411197]
[1760138673112,3.01316777,1113.9,1107.4,0.64091938]
[1760138673307,3.01316777,1113.9,1107.8,0.64091938]
[1760138673510,3.01316777,1114.6,1107.9,1.32942825]
[1760138673712,3.01316777,1114.9,1108.1,0.64091938]
[1760138673914,3.01316777,1115.1,1108.4,0.64091938]
[1760138674112,3.01316777,1115.1,1108.5,1.32942825]
[1760138674315,2.18578324,1113.2,1108.0,0.64091938]
[1760138674514,2.18578324,1113.2,1108.1,1.2842294]
[1760138674814,2.18578324,1113.6,1108.2,0.64331002]
[1760138675017,2.18578324,1113.6,1108.3,0.64331002]
[1760138675217,2.18578324,1113.6,1107.3,0.64091938]
[1760138675516,2.18578324,1113.0,1107.4,0.60375983]
[1760138675718,2.18578324,1113.0,1107.5,0.60375983]
[1760138676016,3.01316777,1112.9,1107.6,0.60375983]
[1760138676215,3.01316777,1112.9,1107.7,0.60375983]
[1760138676413,2.18578324,1112.6,1106.8,0.64091938]
[1760138676617,2.18578324,1112.6,1106.9,0.60445465]
[1760138676813,2.18578324,1112.2,1107.0,0.60445465]
[1760138677116,2.18578324,1112.2,1106.3,0.64091938]
[1760138677317,5.19895101,1112.2,1106.7,0.64091938]
[1760138677515,2.18578324,1112.2,1107.1,0.64091938]
[1760138677714,2.18578324,1112.2,1107.2,0.60481223]
[1760138678013,2.18578324,1113.4,1107.4,0.64091938]
[1760138678213,2.18578324,1113.4,1107.5,0.60481223]
[1760138678418,2.18578324,1113.4,1107.9,0.64091938]
[1760138678619,2.18578324,1112.7,1108.0,0.60481223]
[1760138678817,2.18578324,1112.7,1107.6,0.64091938]
[1760138679118,2.18578324,1112.6,1107.7,1.28138594]
[1760138679319,2.18578324,1112.9,1108.2,0.64091938]
[1760138679520,2.18578324,1112.9,1108.3,0.64046656]
[1760138679719,2.18578324,1112.9,1108.4,0.64046656]
[1760138679916,2.18578324,1112.9,1108.0,0.64091938]
[1760138679917,5.19895101,1113.4,1107.9,0.64091938]
[1760138680219,5.19895101,1113.4,1108.0,1.29126207]
[1760138680516,2.18578324,1112.8,1108.1,0.65034269]
[1760138680815,2.18578324,1112.8,1107.4,0.64091938]
[1760138681016,2.18578324,1112.0,1107.5,0.63853529]
[1760138681221,2.18578324,1112.0,1107.0,0.64091938]
[1760138681424,2.18578324,1112.0,1106.1,0.64091938]
[1760138681618,2.18578324,1111.1,1106.2,0.57163182]
[1760138681817,2.18578324,1111.1,1106.3,0.57163182]
[1760138682022,2.18578324,1111.2,1105.8,0.64091938]
[1760138682222,2.18578324,1111.2,1105.9,0.57320711]
[1760138682418,2.18578324,1111.2,1106.0,0.57320711]
[1760138682718,2.18578324,1110.4,1105.5,0.64091938]
[1760138682918,2.18578324,1110.4,1105.6,0.58278661]
[1760138683221,2.18578324,1110.4,1105.7,0.58278661]
[1760138683517,2.18578324,1110.4,1105.8,0.58278661]
[1760138683719,2.18578324,1110.5,1105.4,0.64091938]
[1760138683921,2.18578324,1110.5,1105.5,1.22437372]
[1760138684117,2.18578324,1110.5,1105.2,0.64091938]
[1760138684416,2.18578324,1110.2,1105.3,1.22464548]
[1760138684620,3.01316777,1111.1,1105.6,0.64091938]
[1760138684621,2.18578324,1110.8,1105.6,0.64091938]
[1760138684822,2.18578324,1110.8,1105.0,1.529]
[1760138685118,2.18578324,1109.6,1105.1,0.6155247]
[1760138685321,2.18578324,1109.6,1105.0,1.529]
[1760138685818,0.88000173,1108.0,1105.0,1.529]
[1760138686720,2.18578324,1109.1,1105.1,0.63801812]
[1760138687021,3.01316777,1109.7,1105.3,0.64973276]
[1760138687225,2.18578324,1110.7,1105.4,0.63801812]
[1760138687423,2.18578324,1110.7,1105.5,0.63801812]
[1760138687624,2.18578324,1110.3,1105.6,0.63709914]
[1760138687821,2.18578324,1110.3,1105.0,1.529]
[1760138688021,2.18578324,1110.3,1105.1,0.60584004]
[1760138688323,2.18578324,1110.3,1105.0,1.529]
[1760138688521,2.18578324,1110.3,1105.1,0.60649213]
[1760138688725,2.18578324,1110.4,1105.2,1.25539819]
[1760138688922,2.18578324,1110.4,1105.0,1.529]
[1760138689222,2.18578324,1110.0,1105.1,0.59306029]
[1760138689422,2.18578324,1110.0,1105.0,1.529]
[1760138689723,2.18578324,1110.0,1105.1,0.64754559]
[1760138689924,2.18578324,1110.4,1105.2,0.64754559]
[1760138690122,2.18578324,1110.4,1105.3,0.64754559]
[1760138690322,2.18578324,1111.2,1105.5,0.64973276]
[1760138690525,2.18578324,1111.2,1105.6,0.64754559]
[1760138690825,2.18578324,1110.6,1105.7,0.64754559]
[1760138691120,2.18578324,1110.6,1105.1,0.64973276]
[1760138691326,2.18578324,1110.0,1105.2,0.63327489]
[1760138691526,2.18578324,1110.0,1105.3,0.63327489]
[1760138691727,2.18578324,1110.0,1105.0,1.529]
[1760138691928,2.18578324,1109.3,1105.0,1.529]
[1760138692525,2.18578324,1108.3,1105.0,1.529]
[1760138692726,2.18578324,1109.2,1105.0,1.529]
[1760138692925,2.18578324,1109.0,1105.0,1.529]
[1760138693530,3.01316777,1109.3,1105.0,1.529]
[1760138693828,3.01316777,1109.3,1105.2,0.64973276]
[1760138694026,3.01316777,1110.6,1105.3,0.70824682]
[1760138694223,3.01316777,1110.6,1105.2,0.64973276]
[1760138694224,3.01316777,1110.6,1105.0,1.529]
[1760138694829,3.01316777,1110.6,1105.1,0.76562496]
[1760138695025,4.30452539,1111.6,1105.3,0.64973276]
[1760138695327,4.30452539,1111.6,1105.4,0.76562496]
[1760138695527,4.30452539,1111.6,1105.5,0.76562496]
[1760138695731,6.88724063,1112.4,1105.6,0.76562496]
[1760138696025,1.31396093,1107.2,1105.0,1.529]
[1760138696526,1.31396093,1107.1,1105.0,1.529]
[1760138696726,1.31396093,1106.9,1105.0,1.529]
[1760138696927,0.87560315,1105.8,1105.0,1.529]
[1760138697130,0.87560315,1106.2,1105.0,1.529]
[1760138697528,0.87560315,1106.4,1105.0,1.529]
[1760138697731,0.87560315,1106.2,1105.0,1.529]
[1760138698031,0.87560315,1106.3,1105.0,1.529]
[1760138698227,0.87560315,1106.1,1105.0,1.529]
[1760138698427,0.87560315,1106.2,1105.0,1.529]
[1760138698733,0.87560315,1106.9,1105.0,1.529]
[1760138698929,0.87560315,1106.2,1105.0,1.529]
[1760138699328,0.87560315,1106.2,1101.6,0.64973276]
[1760138699527,0.87560315,1106.4,1101.4,0.64973276]
[1760138700029,0.87560315,1106.3,1101.4,0.64973276]
[1760138700231,0.87560315,1106.3,1101.6,0.64973276]
[1760138700432,0.87560315,1106.6,1101.9,0.64973276]
[1760138700634,0.87560315,1107.0,1102.3,0.64973276]
[1760138700933,0.87560315,1106.6,1102.0,0.64973276]
[1760138701636,0.87560315,1107.7,1102.8,0.64973276]
[1760138701930,0.87560315,1107.8,1102.8,0.64973276]
[1760138702134,0.87560315,1107.7,1103.0,0.64973276]
[1760138702335,0.87560315,1107.9,1103.2,0.64973276]
[1760138702536,0.87560315,1108.1,1103.4,0.64973276]
[1760138703031,3.06590885,1109.9,1105.2,0.64973276]
[1760138703235,2.18993489,1112.7,1105.5,0.64973276]
[1760138703433,2.18993489,1112.7,1105.6,1.28999548]
[1760138703633,2.18993489,1111.6,1105.7,0.64026272]
[1760138703836,2.18993489,1111.6,1105.8,0.64026272]
[1760138704031,2.18993489,1111.0,1105.1,0.64973276]
[1760138704234,2.18993489,1111.2,1105.3,0.64973276]
[1760138704532,2.18993489,1111.2,1105.4,1.24805212]
[1760138704733,2.18993489,1110.8,1105.5,0.59831936]
[1760138704934,1.30649178,1110.0,1104.6,0.64973276]
[1760138705237,1.30649178,1109.6,1104.7,0.55249924]
[1760138705432,1.30649178,1109.5,1104.8,0.55249924]
[1760138705636,1.30649178,1109.4,1104.3,0.64973276]
[1760138705934,2.18993489,1110.4,1104.8,0.64973276]
[1760138706132,2.18993489,1110.8,1105.2,0.64973276]
[1760138706337,2.18993489,1110.8,1105.3,0.55158923]
[1760138706533,2.18993489,1110.8,1105.4,0.55158923]
[1760138706733,2.18993489,1111.1,1105.5,0.55158923]
[1760138706933,2.18993489,1111.1,1105.6,0.55158923]
[1760138707133,2.18993489,1111.1,1105.7,1.20132199]
[1760138707433,2.18993489,1111.9,1105.9,0.64973276]
[1760138707637,2.18993489,1111.9,1106.0,0.55158923]
[1760138707936,2.18993489,1112.6,1106.1,0.55158923]
[1760138708137,2.18993489,1112.6,1106.2,0.55158923]
[1760138708344,2.18993489,1112.6,1105.5,0.64973276]
[1760138708537,2.18993489,1111.4,1105.6,0.65508738]
[1760138708837,2.18993489,1111.4,1105.0,0.64973276]
[1760138709132,2.18993489,1111.0,1104.2,0.64973276]
[1760138709335,2.18993489,1111.0,1104.3,0.61305182]
[1760138709534,2.18993489,1109.7,1103.9,0.64973276]
[1760138709736,2.18993489,1109.7,1103.7,0.64973276]
[1760138709935,2.18993489,1111.0,1104.2,0.64973276]
[1760138710136,2.18993489,1111.0,1104.0,1.26355388]
[1760138710536,2.18993489,1111.0,1104.1,0.58976098]
[1760138710838,2.18993489,1110.1,1104.4,0.64876464]
[1760138711035,2.18993489,1110.1,1104.8,0.64876464]
[1760138711236,3.06590885,1110.5,1104.9,0.58976098]
[1760138711237,2.18993489,1110.4,1104.9,0.58976098]
[1760138711439,2.18993489,1110.3,1105.0,0.58976098]
[1760138711639,4.30452539,1111.2,1105.1,0.58976098]
[1760138711840,4.30452539,1111.2,1104.4,0.64876464]
[1760138712039,4.30452539,1111.2,1104.1,0.64876464]
[1760138712238,1.30765879,1108.3,1103.5,0.64876464]
[1760138712441,1.30765879,1108.2,1103.6,0.5719396]
[1760138712641,1.30765879,1108.8,1103.7,1.22070424]
[1760138712938,1.30765879,1109.0,1103.8,0.5719396]
[1760138713138,3.06590885,1110.1,1104.3,0.64876464]
[1760138713341,2.18993489,1110.8,1104.6,0.64876464]
[1760138713541,2.18993489,1111.8,1104.9,0.64876464]
[1760138713743,2.18993489,1111.8,1105.0,1.22070424]
[1760138714038,2.18993489,1111.4,1105.3,0.64876464]
[1760138714238,3.06590885,1111.9,1106.1,0.64876464]
[1760138714440,2.18993489,1111.7,1106.3,0.64876464]
[1760138714638,2.18993489,1112.0,1106.3,0.5719396]
[1760138714841,2.18993489,1112.0,1105.4,0.64876464]
[1760138715141,2.18993489,1110.5,1104.7,0.64876464]
[1760138715339,2.18993489,1110.5,1104.5,0.84187523]
[1760138715544,2.18993489,1110.8,1105.0,0.64878843]
[1760138715739,2.18993489,1110.8,1104.5,1.26087984]
[1760138715740,2.18993489,1110.8,1105.1,0.58988359]
[1760138715940,2.18993489,1110.8,1104.3,1.26087984]
[1760138715941,2.18993489,1110.8,1104.6,0.64878843]
[1760138716442,5.25584374,1111.4,1105.4,0.65052249]
[1760138716740,5.25584374,1111.4,1105.9,0.65052249]
[1760138716741,3.06590885,1111.4,1105.9,0.65052249]
[1760138716944,3.06590885,1111.4,1105.5,0.65052249]
[1760138717144,3.06590885,1111.4,1105.8,0.65052249]
[1760138717447,2.18993489,1111.4,1105.9,0.65522104]
[1760138717748,3.06590885,1111.8,1106.3,0.65052249]
[1760138717944,4.30452539,1112.5,1106.8,0.65052249]
[1760138718145,6.88724063,1113.9,1106.9,0.65522104]
[1760138718448,6.88724063,1113.9,1107.0,1.30574353]
[1760138718648,6.88724063,1113.9,1107.1,0.65522104]
[1760138718844,6.88724063,1113.9,1107.2,0.65522104]
[1760138719045,6.88724063,1113.9,1106.7,0.65052249]
[1760138719249,6.88724063,1113.9,1106.8,0.68013163]
[1760138719450,6.88724063,1113.9,1107.5,0.65052249]
[1760138719750,2.17369753,1114.1,1107.6,0.64033781]
[1760138719949,2.17369753,1114.1,1107.7,0.64033781]
[1760138720149,2.17369753,1114.1,1107.8,0.64033781]
[1760138720345,2.17369753,1113.8,1107.3,0.65052249]
[1760138720551,2.17369753,1113.8,1107.7,0.65052249]
[1760138720745,2.17369753,1114.0,1107.9,0.65052249]
[1760138720950,2.17369753,1114.0,1108.0,0.63982734]
[1760138721246,2.17369753,1114.1,1108.1,0.63982734]
[1760138721549,2.17369753,1114.1,1107.6,0.65052249]
[1760138721550,3.04494235,1114.0,1107.4,0.65052249]
[1760138721744,3.04494235,1114.0,1107.5,0.63649703]
[1760138721947,3.04494235,1114.0,1107.1,0.84187523]
[1760138722148,2.17369753,1113.4,1107.2,0.63625651]
[1760138722351,2.17369753,1113.4,1107.3,0.63625651]
[1760138722548,2.17369753,1112.7,1107.4,0.63625651]
[1760138722749,2.17369753,1112.7,1107.5,0.6368272]
[1760138722955,2.17369753,1112.7,1106.8,0.64718901]
[1760138723250,2.17369753,1112.9,1107.1,0.64718901]
[1760138723451,2.17369753,1112.9,1107.2,0.63695437]
[1760138723654,2.17369753,1112.9,1107.3,0.63695437]
[1760138723852,3.04494235,1113.4,1107.4,0.63695437]
[1760138724154,2.17369753,1113.9,1107.5,0.63695437]
[1760138724353,2.17369753,1113.9,1107.6,0.63685185]
[1760138724554,2.17369753,1112.8,1107.2,0.64718901]
[1760138724757,2.17369753,1112.8,1107.3,1.28393295]
[1760138724952,2.17369753,1113.7,1107.4,0.63674394]
[1760138725154,2.17369753,1113.8,1107.5,1.28393295]
[1760138725457,2.17369753,1113.8,1107.6,0.63674394]
[1760138725756,2.17369753,1113.7,1106.8,0.64718901]
[1760138725953,2.17369753,1113.7,1106.9,0.62539732]
[1760138726253,2.17369753,1113.4,1107.0,0.62539732]
[1760138726456,2.17369753,1113.4,1107.1,0.62539732]
[1760138726657,2.17369753,1112.4,1107.2,0.62517086]
[1760138726957,2.17369753,1113.1,1107.3,0.6274106]
[1760138727254,2.17369753,1113.1,1106.9,0.64718901]
[1760138727456,2.17369753,1113.3,1107.0,0.62565506]
[1760138727753,2.17369753,1113.3,1106.7,0.84187523]
[1760138727956,2.17369753,1113.3,1106.9,0.64754894]
[1760138728156,2.17369753,1113.8,1107.0,0.62547808]
[1760138728357,2.17369753,1113.8,1107.1,0.62547808]
[1760138728557,2.17369753,1113.8,1107.2,0.62547808]
[1760138728756,2.17369753,1113.8,1107.3,0.62547808]
[1760138728953,2.17369753,1113.8,1107.4,0.62547808]
[1760138729153,2.17369753,1113.8,1107.5,0.62399381]
[1760138729456,2.17369753,1114.0,1107.0,0.64754894]
[1760138729656,2.17369753,1113.7,1107.2,0.64754894]
[1760138729857,2.17369753,1113.7,1107.8,0.64754894]
[1760138730155,3.04494235,1114.7,1107.9,0.62393956]
[1760138730359,3.04494235,1114.6,1108.0,0.62393956]
[1760138730555,3.04494235,1114.6,1108.1,0.62393956]
[1760138730757,3.04494235,1114.6,1108.2,0.62393956]
[1760138730958,3.04494235,1114.6,1107.9,0.64754894]
[1760138731257,3.04494235,1114.6,1108.0,0.66655939]
[1760138731456,4.30452539,1115.1,1108.1,0.66655939]
[1760138731661,4.30452539,1115.1,1108.2,0.66655939]
[1760138731959,4.30452539,1115.1,1107.5,0.64754894]
[1760138732160,4.30452539,1115.1,1107.6,0.66720297]
[1760138732458,3.04494235,1114.1,1107.7,0.66720297]
[1760138732660,3.04494235,1114.1,1107.2,0.64754894]
[1760138732857,3.04494235,1114.1,1107.3,0.66803178]
[1760138733160,3.04494235,1114.1,1107.4,2.45303178]
[1760138733360,2.16292841,1114.4,1107.5,0.66803178]
[1760138733660,2.16292841,1114.4,1107.4,1.785]
[1760138733962,2.16292841,1113.5,1107.5,0.66062055]
[1760138734264,2.16292841,1113.5,1107.4,1.785]
[1760138734466,2.16292841,1113.5,1107.5,0.65332087]
[1760138734663,2.16292841,1113.9,1107.6,0.65332087]
[1760138734864,2.16292841,1113.9,1107.7,0.65332087]
[1760138735063,2.16292841,1113.9,1107.4,1.785]
[1760138735267,2.16292841,1113.7,1107.5,0.65281387]
[1760138735468,2.16292841,1113.4,1107.6,0.65281387]
[1760138735664,2.16292841,1113.4,1107.7,0.65281387]
[1760138735868,2.16292841,1113.4,1107.8,0.65281387]
[1760138736165,2.16292841,1113.5,1107.9,0.65306452]
[1760138736365,2.16292841,1113.6,1108.0,0.65306452]
[1760138736565,2.16292841,1113.6,1107.6,0.64869691]
[1760138736765,3.04494235,1114.0,1107.7,1.30165039]
[1760138736965,3.04494235,1114.0,1107.8,0.65295348]
[1760138737265,2.16292841,1114.6,1107.9,0.65295348]
[1760138737568,2.16292841,1114.6,1108.0,0.65295348]
[1760138737769,2.16292841,1114.6,1108.1,0.65295348]
[1760138737966,2.16292841,1114.4,1107.6,0.64869691]
[1760138738269,2.16292841,1114.4,1107.7,0.65258523]
[1760138738470,2.16292841,1114.1,1107.8,0.65258523]
[1760138738670,2.16292841,1114.1,1107.9,0.65258523]
[1760138738869,2.16292841,1114.1,1107.4,1.785]
[1760138739072,2.16292841,1114.0,1107.5,0.65289175]
[1760138739270,2.16292841,1114.0,1107.6,0.65289175]
[1760138739673,2.16292841,1114.0,1107.4,1.785]
[1760138739971,2.16292841,1114.2,1107.5,0.65229863]
[1760138740168,2.16292841,1114.2,1107.6,0.65229863]
[1760138740373,2.16292841,1114.4,1107.7,0.65229863]
[1760138740573,2.16292841,1114.4,1107.4,1.785]
[1760138740769,2.16292841,1114.4,1107.5,0.65226213]
[1760138740970,2.16292841,1113.9,1107.6,0.65226213]
[1760138741169,5.20787076,1113.9,1107.7,0.65226213]
[1760138741469,4.30452539,1115.6,1107.5,0.64766369]
[1760138741470,2.16292841,1114.7,1108.0,0.64766369]
[1760138741674,2.16292841,1114.7,1108.1,0.65226213]
[1760138741871,2.16292841,1114.7,1108.2,0.65226213]
[1760138742070,2.16292841,1114.8,1108.3,0.65226213]
[1760138742274,2.16292841,1114.8,1108.4,0.65226213]
[1760138742474,2.16292841,1114.8,1107.9,0.64766369]
[1760138742670,2.16292841,1114.9,1108.0,0.64860302]
[1760138742875,2.16292841,1114.9,1108.1,0.64860302]
[1760138743072,2.16292841,1114.4,1107.4,2.43266369]
[1760138743370,2.16292841,1114.4,1107.5,0.63879555]
[1760138743573,2.16292841,1114.4,1107.6,0.63879555]
[1760138743772,2.16292841,1114.1,1107.7,0.63879555]
[1760138744076,2.16292841,1114.1,1107.4,1.785]
[1760138744373,2.16292841,1114.7,1107.9,0.64766369]
[1760138744673,3.04494235,1115.2,1107.5,0.6280774]
[1760138744674,5.20787076,1115.2,1108.0,0.6280774]
[1760138744890,5.20787076,1115.2,1108.1,0.6280774]
[1760138745071,2.16292841,1114.7,1107.5,0.64766369]
[1760138745275,2.16292841,1114.7,1107.6,0.62593218]
[1760138745474,2.16292841,1114.7,1107.7,0.62593218]
[1760138745677,2.16292841,1114.3,1107.4,1.785]
[1760138746178,2.16292841,1113.7,1107.4,1.785]
[1760138746778,2.16292841,1113.5,1107.4,1.785]
[1760138747279,2.16292841,1113.4,1107.4,1.785]
[1760138747678,2.16292841,1113.5,1107.4,1.785]
[1760138747878,2.16292841,1114.0,1107.5,0.63523679]
[1760138748081,2.16292841,1114.0,1107.6,0.63462729]
[1760138748378,3.04494235,1114.6,1107.4,1.785]
[1760138748776,2.16292841,1113.7,1107.4,1.785]
[1760138749285,2.16292841,1114.3,1107.5,0.63395851]
[1760138749480,2.16292841,1114.3,1107.6,0.63395851]
[1760138749776,2.16292841,1114.4,1107.7,0.63353944]
[1760138749980,2.16292841,1115.0,1107.8,1.28120313]
[1760138750276,2.16292841,1115.0,1107.9,0.63353944]
[1760138750478,8.85447096,1118.6,1107.9,0.63353944]
[1760138750479,2.16292841,1115.4,1108.2,0.64766369]
[1760138750680,2.16292841,1115.4,1108.3,0.63353944]
[1760138750977,3.04494235,1115.9,1107.4,2.43266369]
[1760138750978,2.16292841,1114.8,1107.4,2.43266369]
[1760138751281,2.16292841,1114.9,1107.5,1.27094616]
[1760138751478,2.16292841,1114.9,1107.6,0.63313726]
[1760138751778,2.16292841,1115.0,1107.7,0.63313726]
[1760138751976,2.16292841,1115.0,1107.8,0.63313726]
[1760138752175,2.16292841,1115.0,1107.9,0.63313726]
[1760138752376,2.16292841,1115.0,1107.4,2.4228089]
[1760138752577,2.16292841,1115.0,1107.5,0.63511495]
[1760138752778,2.16292841,1115.0,1107.4,1.785]
[1760138752979,2.16292841,1114.7,1107.5,0.63532338]
[1760138753282,2.16292841,1114.6,1107.4,1.785]
[1760138753679,2.16292841,1113.9,1107.4,1.785]
[1760138754181,2.16292841,1113.7,1107.4,1.785]
[1760138754579,2.16292841,1114.3,1107.5,0.63683916]
[1760138754782,2.16292841,1114.3,1107.4,1.785]
[1760138754783,2.16292841,1114.9,1108.2,0.6378089]
[1760138754979,2.16292841,1115.2,1108.4,0.6378089]
[1760138755179,2.16292841,1115.2,1108.5,0.63683916]
[1760138755483,2.16292841,1115.2,1107.8,0.6378089]
[1760138755678,2.16292841,1115.2,1107.9,1.27392275]
[1760138755879,2.16292841,1115.2,1108.0,0.63611385]
[1760138756078,2.16292841,1114.6,1108.1,1.27392275]
[1760138756282,2.16292841,1114.6,1108.2,0.63611385]
[1760138756483,2.16292841,1114.6,1108.3,0.63611385]
[1760138756683,2.16292841,1114.4,1108.4,0.63660659]
[1760138756880,2.16292841,1114.4,1108.0,0.6378089]
[1760138757186,2.16292841,1114.4,1108.1,0.63724462]
[1760138757382,2.16292841,1114.8,1108.2,0.63724462]
[1760138757584,2.16292841,1114.6,1108.3,1.27910201]
[1760138757789,0.15670593,1112.9,1108.8,0.64185739]
[1760138757985,2.16292841,1114.7,1108.9,0.63724462]
[1760138758185,2.16292841,1114.7,1109.0,0.63724462]
[1760138758385,2.16292841,1114.7,1108.4,0.84187523]
[1760138758686,2.16292841,1114.2,1107.4,2.42685739]
[1760138758983,2.16292841,1114.3,1107.7,0.64185739]
[1760138759186,2.16292841,1114.3,1107.8,0.62547867]
[1760138759381,2.16292841,1114.3,1107.9,0.62669822]
[1760138759682,2.16292841,1113.3,1107.4,1.785]
[1760138759886,2.16292841,1113.3,1107.5,0.62727939]
[1760138760086,2.16292841,1113.2,1107.4,1.785]
[1760138760382,3.04494235,1113.9,1107.5,0.62847451]
[1760138760585,3.04494235,1113.9,1107.6,0.62847451]
[1760138760885,2.16292841,1113.7,1107.7,0.62847451]
[1760138761081,2.16292841,1113.7,1107.8,0.62847451]
[1760138761285,2.16292841,1113.7,1107.9,0.62847451]
[1760138761584,5.20787076,1114.3,1108.0,0.62847451]
[1760138761785,5.20787076,1114.3,1108.1,0.62847451]
[1760138761981,2.16292841,1114.0,1108.2,0.62847451]
[1760138762184,2.16292841,1114.0,1107.7,0.64185739]
[1760138762383,2.16292841,1113.5,1107.8,0.66281867]
[1760138762584,2.16292841,1113.5,1107.4,1.785]
[1760138763285,2.16292841,1112.2,1107.4,1.785]
[1760138763485,5.20787076,1112.2,1107.4,1.785]
[1760138763888,6.88724063,1114.0,1107.4,1.785]
[1760138763889,2.16292841,1112.8,1107.4,1.785]
[1760138764285,2.16292841,1113.0,1107.4,1.785]
[1760138764988,2.16292841,1112.6,1107.4,1.785]
[1760138765186,2.16292841,1112.7,1107.5,0.65498589]
[1760138765389,2.16292841,1112.7,1107.4,2.43542389]
[1760138765390,2.16292841,1112.7,1107.4,1.785]
[1760138765688,4.30452539,1113.8,1108.7,0.65042389]
[1760138765887,4.30452539,1113.8,1108.8,0.65519102]
[1760138766086,4.30452539,1113.8,1108.9,0.65519102]
[1760138766288,4.30452539,1113.8,1108.0,0.49356645]
[1760138766488,4.30452539,1113.8,1108.1,0.74601155]
[1760138766689,4.30452539,1113.8,1108.2,0.74601155]
[1760138766991,4.30452539,1113.8,1108.3,0.74005325]
[1760138767187,4.30452539,1113.8,1108.4,0.74005325]
[1760138767387,6.88724063,1115.0,1108.5,0.74005325]
[1760138767690,1.30927227,1110.6,1105.1,0.84187523]
[1760138767892,1.30927227,1110.0,1105.2,0.56693791]
[1760138768189,1.30927227,1110.0,1105.3,0.56693791]
[1760138768393,1.30927227,1110.7,1105.4,0.56693791]
[1760138768694,1.30927227,1110.3,1105.5,0.56693791]
[1760138768993,1.30927227,1110.5,1105.6,0.56693791]